fUST/lending_fUST_20240522
["ID","MTS","AMOUNT","RATE_DAILY","PERIOD"]
[327719949,1716377441605,-3000.0,0.0002177,2]
[327719950,1716377441615,-3000.0,0.0002178,2]
[327719951,1716377441625,-1957.71315044,0.0002179,2]
[327719953,1716377443060,-1042.28684956,0.0002179,2]
[327719954,1716377443072,-3000.0,0.000218,2]
[327719955,1716377443083,-3000.0,0.0002181,2]
[327719956,1716377443094,-2010.92904644,0.0002182,2]
[327719957,1716377443106,-989.07095356,0.0002182,2]
[327719958,1716377443117,-3000.0,0.0002183,2]
[327719959,1716377443310,-3000.0,0.0002184,2]
[327719960,1716377443321,-136.78824649,0.0002185,2]
[327719974,1716377444309,-564.93752706,0.00019337,2]
[327719975,1716377444323,-34386.53805593,0.00019337,2]
[327719976,1716377444336,-2863.21175351,0.0002185,2]
[327719977,1716377444346,-3000.0,0.0002186,2]
[327719978,1716377444356,-1306.93128679,0.0002187,2]
[327719989,1716377449419,-500.0,0.0001934,2]
[327719991,1716377449429,-500.0,0.0001934,2]
[327719993,1716377449439,-400.0,0.0001934,2]
[327719994,1716377449449,-1693.06871321,0.0002187,2]
[327719996,1716377449459,-3000.0,0.0002188,2]
[327719998,1716377449470,-3000.0,0.0002189,2]
[327719999,1716377449480,-3000.0,0.000219,2]
[327720000,1716377449491,-3000.0,0.0002191,2]
[327720001,1716377449501,-166.666666,0.00021918,2]
[327720002,1716377449511,-3000.0,0.0002192,2]
[327720003,1716377449521,-3000.0,0.0002193,2]
[327720004,1716377449531,-3000.0,0.0002194,2]
[327720005,1716377449541,-3000.0,0.0002195,2]
[327720006,1716377449551,-3000.0,0.0002196,2]
[327720007,1716377449568,-3000.0,0.0002197,2]
[327720008,1716377449585,-4150.912581,0.0002198,2]
[327720009,1716377449595,-778.29964497,0.00022284,2]
[327720010,1716377449607,-5600.0,0.000223,6]
[327720011,1716377449617,-268.3,0.00022523,3]
[327720012,1716377449628,-151.0,0.00022523,3]
[327720013,1716377449639,-500.0,0.0002263,2]
[327720014,1716377449649,-502.4,0.0002263,2]
[327720015,1716377449660,-1881.861407,0.00023,2]
[327720016,1716377449671,-166.666666,0.000232,2]
[327720017,1716377449682,-41311.42052806,0.00023454,7]
[327720052,1716378217549,181.50612434,9.999e-05,2]
[327720053,1716378218485,2480.48434793,0.00015,2]
[327720054,1716378218664,6002.77442392,0.00015,2]
[327720113,1716378638259,-317.25451371,0.00018232,2]
[327720114,1716378638269,-68075.81982778,0.00018332,2]
[327720115,1716378638279,-181.50612434,0.00018332,2]
[327720116,1716378638292,-13869.8724141,0.00018333,2]
[327720117,1716378638302,-250.0,0.00018467,2]
[327720118,1716378638312,-744.92447454,0.000189,2]
[327720119,1716378638321,-210.97208713,0.00019178,2]
[327720120,1716378638331,-617.20138084,0.00019178,2]
[327720121,1716378638340,-170.68488,0.00019178,2]
[327720122,1716378638350,-288.49,0.00019321,3]
[327720123,1716378638364,-865.5,0.00019321,3]
[327720124,1716378638373,-528.12882567,0.0001933,2]
[327720125,1716378638384,-500.0,0.0001933,2]
[327720126,1716378638394,-298.06337266,0.0001933,2]
[327720127,1716378638408,-500.0,0.0001933,2]
[327720128,1716378638417,-500.0,0.0001933,2]
[327720129,1716378638427,-500.0,0.0001933,2]
[327720130,1716378638439,-500.0,0.0001933,2]
[327720131,1716378638449,-500.0,0.0001933,2]
[327720132,1716378638458,-500.0,0.0001933,2]
[327720133,1716378638468,-500.0,0.0001933,2]
[327720134,1716378638477,-500.0,0.0001933,2]
[327720135,1716378638486,-616.49858221,0.0001933,2]
[327720136,1716378638496,-214.75376325,0.0001933,2]
[327720137,1716378638506,-500.0,0.0001933,2]
[327720138,1716378638522,-500.0,0.0001933,2]
[327720139,1716378638540,-500.0,0.0001933,2]
[327720140,1716378638549,-500.0,0.0001933,2]
[327720141,1716378638559,-500.0,0.0001933,2]
[327720142,1716378638569,-500.0,0.0001933,2]
[327720143,1716378638579,-500.0,0.0001933,2]
[327720144,1716378638588,-500.0,0.0001933,2]
[327720145,1716378638597,-500.0,0.0001933,2]
[327720146,1716378638607,-500.0,0.0001933,2]
[327720147,1716378638616,-500.0,0.0001933,2]
[327720148,1716378638626,-500.0,0.0001933,2]
[327720149,1716378638635,-500.0,0.0001933,2]
[327720150,1716378638644,-500.0,0.0001933,2]
[327720151,1716378638653,-500.0,0.0001933,2]
[327720152,1716378638663,-500.0,0.0001933,2]
[327720153,1716378638672,-500.0,0.0001933,2]
[327720154,1716378638682,-500.0,0.0001933,2]
[327720155,1716378638691,-500.0,0.0001933,2]
[327720156,1716378638700,-500.0,0.0001933,2]
[327720157,1716378638710,-500.0,0.0001933,2]
[327720158,1716378638719,-500.0,0.0001933,2]
[327720159,1716378638729,-500.0,0.0001933,2]
[327720160,1716378638738,-500.0,0.0001933,2]
[327720161,1716378638748,-22226.940149,0.00019331,5]
[327720162,1716378638757,-1196.91243673,0.00019332,2]
[327720163,1716378638767,-2641.15698736,0.00019332,2]
[327720164,1716378638776,-154.98450155,0.00019336,2]
[327720165,1716378638789,-239.15823767,0.00019339,2]
[327720166,1716378638798,-1600.59525261,0.00019339,2]
[327720167,1716378638808,-923.04941092,0.00019866,2]
[327720168,1716378638817,-4385.05386688,0.000199,2]
[327720169,1716378638826,-527.39256429,0.0002,4]
[327720170,1716378638836,-2537.08634654,0.0002,2]
[327720171,1716378638849,-11197.69999992,0.0002,2]
[327720185,1716378643315,-15064.74722329,0.0002,2]
[327720186,1716378643327,-7705.24773752,0.0002,2]
[327720187,1716378643468,-2662.92380938,0.0002,2]
[327720188,1716378643479,-576.98,0.00020691,3]
[327720189,1716378643489,-317.2545137,0.0002074,2]
[327720190,1716378643500,-277.4330035,0.00020912,2]
[327720191,1716378643511,-150.0,0.000215,2]
[327720192,1716378643521,-166.666666,0.00021918,2]
[327720193,1716378643531,-245.9,0.00022291,3]
[327720194,1716378643544,-151.0,0.00022291,3]
[327720195,1716378643554,-5600.0,0.000223,6]
[327720196,1716378643566,-4224.86010977,0.0002287,2]
[327720197,1716378643576,-417.39872503,0.00022872,2]
[327720198,1716378643585,-408.28334853,0.00022967,2]
[327720199,1716378643596,-2003.0,0.000233,3]
[327720200,1716378643606,-245.9,0.00023303,3]
[327720201,1716378643616,-151.0,0.00023303,3]
[327720202,1716378643627,-14926.99929817,0.00023354,3]
[327720203,1716378643637,-281.0,0.000234,2]
[327720204,1716378643646,-1376.50827959,0.00023454,7]
[327720205,1716378643667,-9077.94690825,0.00023454,7]
[327720244,1716379740903,453.0,0.00025,60]
[327720282,1716379832666,-1149.63675721,0.00019321,2]
[327720283,1716379832675,-629.79218782,0.00019321,2]
[327720284,1716379832685,-226.34092529,0.00019321,2]
[327720285,1716379832695,-500.0,0.00019321,2]
[327720286,1716379832705,-629.79218782,0.00019321,2]
[327720287,1716379832715,-500.0,0.00019321,2]
[327720288,1716379832724,-629.79218782,0.00019321,2]
[327720289,1716379832733,-629.79218782,0.00019321,2]
[327720290,1716379832743,-614.94957466,0.00019321,2]
[327720291,1716379832755,-629.79218782,0.00019321,2]
[327720292,1716379832768,-629.79218782,0.00019321,2]
[327720293,1716379832777,-2063.6315149,0.00019322,2]
[327720294,1716379832788,-720.11009845,0.00019322,2]
[327720295,1716379832804,-983.35197432,0.00019322,2]
[327720296,1716379832813,-214.74140224,0.00019322,2]
[327720297,1716379832822,-780.63294479,0.00019322,2]
[327720298,1716379832832,-284.39265813,0.00019322,2]
[327720299,1716379832847,-267.66151171,0.00019322,2]
[327720300,1716379832856,-17874.87237194,0.00019322,5]
[327720301,1716379832866,-2004.92033865,0.00019323,2]
[327720302,1716379832875,-8092.13332002,0.00019323,2]
[327720313,1716379838555,-629.79218782,0.00019321,2]
[327720314,1716379838565,-629.79218782,0.00019321,2]
[327720315,1716379838575,-629.79218782,0.00019321,2]
[327720316,1716379838586,-629.79218782,0.00019321,2]
[327720317,1716379838596,-629.79218782,0.00019321,2]
[327720318,1716379838606,-629.79218782,0.00019321,2]
[327720319,1716379838617,-629.79218782,0.00019321,2]
[327720320,1716379838627,-629.79218782,0.00019321,2]
[327720321,1716379838637,-629.79218782,0.00019321,2]
[327720322,1716379838647,-629.79218782,0.00019321,2]
[327720323,1716379838657,-629.79218782,0.00019321,2]
[327720324,1716379838667,-629.79218782,0.00019321,2]
[327720325,1716379838677,-629.79218782,0.00019321,2]
[327720326,1716379838687,-629.79218782,0.00019321,2]
[327720327,1716379838697,-629.79218782,0.00019321,2]
[327720328,1716379838706,-629.79218782,0.00019321,2]
[327720329,1716379838716,-629.79218782,0.00019321,2]
[327720330,1716379838725,-629.79218782,0.00019321,2]
[327720331,1716379838735,-629.79218782,0.00019321,2]
[327720332,1716379838744,-629.79218782,0.00019321,2]
[327720333,1716379838754,-629.79218782,0.00019321,2]
[327720334,1716379838767,-629.79218782,0.00019321,2]
[327720335,1716379838777,-629.79218782,0.00019321,2]
[327720336,1716379838786,-629.79218782,0.00019321,2]
[327720337,1716379838798,-629.79218782,0.00019321,2]
[327720338,1716379838807,-629.79218782,0.00019321,2]
[327720339,1716379838818,-629.79218782,0.00019321,2]
[327720340,1716379838827,-629.79218782,0.00019321,2]
[327720341,1716379838836,-629.79218782,0.00019321,2]
[327720342,1716379838848,-629.79218782,0.00019321,2]
[327720343,1716379838857,-629.79218782,0.00019321,2]
[327720344,1716379838866,-629.79218782,0.00019321,2]
[327720345,1716379838876,-629.79218782,0.00019321,2]
[327720346,1716379838885,-629.79218782,0.00019321,2]
[327720347,1716379838894,-629.79218782,0.00019321,2]
[327720348,1716379838903,-629.79218782,0.00019321,2]
[327720349,1716379838912,-629.79218782,0.00019321,2]
[327720350,1716379838922,-629.79218782,0.00019321,2]
[327720351,1716379838931,-629.79218782,0.00019321,2]
[327720352,1716379838941,-629.79218782,0.00019321,2]
[327720353,1716379838950,-629.79218782,0.00019321,2]
[327720354,1716379838960,-9685.25599915,0.00019322,5]
[327720355,1716379838969,-39509.55676702,0.00019323,2]
[327720356,1716379838978,-160.235846,0.00019324,2]
[327720357,1716379838987,-160.235846,0.00019324,2]
[327720358,1716379838997,-10432.63282907,0.00019326,2]
[327720359,1716379839006,-160.235846,0.00019326,2]
[327720360,1716379839015,-160.235846,0.00019326,2]
[327720361,1716379839025,-167.05278727,0.00020913,2]
[327720362,1716379839035,-3000.0,0.000215,2]
[327720363,1716379839047,-3000.0,0.0002151,2]
[327720364,1716379839056,-3000.0,0.0002152,2]
[327720365,1716379839066,-3000.0,0.0002153,2]
[327720366,1716379839075,-3000.0,0.0002154,2]
[327720367,1716379839084,-3000.0,0.0002155,2]
[327720368,1716379839093,-5171.055621,0.0002156,2]
[327720369,1716379839102,-166.666666,0.00021918,2]
[327720370,1716379839112,-227.3,0.0002216,3]
[327720371,1716379839121,-151.0,0.0002216,3]
[327720372,1716379839130,-1179.83128444,0.00022264,2]
[327720373,1716379839140,-5600.0,0.000223,6]
[327720374,1716379839149,-496.61631636,0.000229,2]
[327720375,1716379839159,-326.62667883,0.00023165,2]
[327720376,1716379839168,-227.3,0.00023184,3]
[327720377,1716379839178,-151.0,0.00023184,3]
[327720378,1716379839187,-3034.56767045,0.00023219,2]
[327720379,1716379839196,-647.99156422,0.00023377,2]
[327720380,1716379839206,-281.0,0.000234,2]
[327720381,1716379839216,-563.0,0.000234,2]
[327720382,1716379839225,-563.0,0.000234,2]
[327720383,1716379839234,-1881.861407,0.000234,2]
[327720384,1716379839244,-4282.88932285,0.00023454,10]
[327720385,1716379839254,-10545.3720017,0.00023454,2]
[327720393,1716379840754,-279.2374612,0.00023454,2]
[327720447,1716379843812,-589.78347727,0.00023454,2]
[327720457,1716379847187,-717.0,0.00023454,2]
[327720458,1716379847203,-2472.93385376,0.00023454,2]
[327720459,1716379847213,-653.96033984,0.00023454,2]
[327720460,1716379847223,-154.93802479,0.00023454,2]
[327720461,1716379847232,-778.29964497,0.00023454,2]
[327720462,1716379847242,-160.235846,0.00023454,2]
[327720463,1716379847252,-160.235846,0.00023454,2]
[327720464,1716379847262,-291.5019197,0.00023562,2]
[327720465,1716379847271,-291.5019197,0.00023562,2]
[327720466,1716379847281,-291.5019197,0.00023562,2]
[327720467,1716379847290,-581.7589866,0.00023562,2]
[327720468,1716379847304,-150.92453773,0.00024184,30]
[327720469,1716379847314,-227.3,0.00024208,5]
[327720470,1716379847324,-151.0,0.00024208,5]
[327720471,1716379847334,-202.574046,0.00024384,2]
[327720472,1716379847344,-212.469558,0.00024384,2]
[327720473,1716379847353,-166.666666,0.00024482,2]
[327720474,1716379847363,-621.39957821,0.00024546,2]
[327720475,1716379847373,-501.06560013,0.00024658,2]
[327720476,1716379847382,-150.92453773,0.00024677,7]
[327720477,1716379847394,-1437.86107925,0.00025,2]
[327720478,1716379847404,-1000.0,0.00025,5]
[327720479,1716379847414,-151.0,0.00025,2]
[327720480,1716379847423,-89203.93290352,0.00025,7]
[327720481,1716379847436,-34648.79749656,0.00025,7]
[327720482,1716379847446,-150.92453773,0.00025181,4]
[327720483,1716379847456,-227.3,0.00025231,5]
[327720484,1716379847465,-151.0,0.00025231,5]
[327720485,1716379847475,-150.92453773,0.00025695,2]
[327720486,1716379847484,-1000.0,0.00026,12]
[327720487,1716379847494,-6895.68318444,0.00026,2]
[327720488,1716379847503,-500.0,0.0002614,2]
[327720489,1716379847513,-502.4,0.0002614,2]
[327720490,1716379847522,-227.3,0.00026255,5]
[327720491,1716379847532,-151.0,0.00026255,5]
[327720492,1716379847542,-876.08144794,0.00026505,2]
[327720493,1716379847556,-307.3427078,0.00026511,2]
[327720494,1716379847565,-425.0557551,0.00026511,2]
[327720495,1716379847574,-153.0,0.00026511,2]
[327720496,1716379847583,-153.0,0.00026511,2]
[327720497,1716379847592,-153.0,0.00026511,2]
[327720498,1716379847601,-1584.57725858,0.000266,2]
[327720499,1716379847611,-23027.64104168,0.000267,120]
[327720500,1716379847620,-160.235846,0.000267,2]
[327720501,1716379847629,-160.235846,0.000267,2]
[327720502,1716379847638,-1000.0,0.00027,13]
[327720503,1716379847648,-227.3,0.00027279,5]
[327720504,1716379847659,-151.0,0.00027279,5]
[327720505,1716379847668,-153.0,0.00027332,2]
[327720506,1716379847678,-153.0,0.00027332,2]
[327720507,1716379847688,-153.0,0.00027332,2]
[327720508,1716379847698,-153.0,0.00027332,2]
[327720509,1716379847708,-153.0,0.00027332,2]
[327720510,1716379847717,-153.0,0.00027332,2]
[327720511,1716379847727,-153.0,0.00027332,2]
[327720512,1716379847736,-153.0,0.00027332,2]
[327720513,1716379847746,-153.0,0.00027332,2]
[327720514,1716379847756,-153.0,0.00027332,2]
[327720515,1716379847769,-153.0,0.00027332,2]
[327720516,1716379847778,-153.0,0.00027332,2]
[327720517,1716379847788,-153.0,0.00027332,2]
[327720518,1716379847801,-153.0,0.00027332,2]
[327720519,1716379847813,-153.0,0.00027332,2]
[327720520,1716379847823,-153.0,0.00027332,2]
[327720521,1716379847832,-153.0,0.00027332,2]
[327720522,1716379847841,-153.0,0.00027332,2]
[327720523,1716379847852,-153.0,0.00027332,2]
[327720524,1716379847863,-153.0,0.00027332,2]
[327720525,1716379847872,-176.903949,0.00027332,2]
[327720526,1716379847881,-153.0,0.00027333,2]
[327720527,1716379847891,-153.0,0.00027333,2]
[327720528,1716379847900,-153.0,0.00027333,2]
[327720529,1716379847909,-153.0,0.00027333,2]
[327720530,1716379847919,-153.0,0.00027333,2]
[327720531,1716379847928,-153.0,0.00027333,2]
[327720532,1716379847938,-153.0,0.00027333,2]
[327720533,1716379847947,-1000.0,0.00027397,5]
[327720534,1716379847957,-1000.0,0.00027397,6]
[327720535,1716379847967,-1000.0,0.00027397,7]
[327720536,1716379847976,-1000.0,0.00027397,8]
[327720537,1716379847986,-1000.0,0.00027397,9]
[327720538,1716379847996,-567.64117603,0.00027397,10]
[327720539,1716379848006,-445.4556404,0.00027397,2]
[327720540,1716379848016,-151.419128,0.00027397,2]
[327720541,1716379848026,-151.0,0.00027397,2]
[327720542,1716379848036,-151.0,0.00027397,2]
[327720543,1716379848046,-151.0,0.00027397,2]
[327720544,1716379848058,-151.0,0.00027397,2]
[327720545,1716379848067,-151.0,0.00027397,2]
[327720546,1716379848076,-204.632642,0.00027397,2]
[327720547,1716379848086,-160.63449517,0.00027397,10]
[327720548,1716379848095,-496.61631636,0.000279,2]
[327720549,1716379848105,-1564.65739694,0.00028,4]
[327720618,1716381032220,-252.9586732,0.00018345,2]
[327720620,1716381032233,-304.50028951,0.00018345,2]
[327720622,1716381032244,-745.18891049,0.00018715,2]
[327720674,1716381037727,-4451.25813581,0.00018715,2]
[327720676,1716381037737,-237.94088531,0.00019215,2]
[327720678,1716381037746,-500.0,0.00019311,2]
[327720680,1716381037756,-500.0,0.00019311,2]
[327720682,1716381037765,-500.0,0.00019311,2]
[327720684,1716381037775,-500.0,0.00019311,2]
[327720686,1716381037785,-500.0,0.00019311,2]
[327720688,1716381037795,-500.0,0.00019311,2]
[327720690,1716381037804,-500.0,0.00019311,2]
[327720692,1716381037814,-500.0,0.00019311,2]
[327720694,1716381037823,-500.0,0.00019311,2]
[327720696,1716381037833,-500.0,0.00019311,2]
[327720698,1716381037843,-500.0,0.00019311,2]
[327720700,1716381037852,-500.0,0.00019311,2]
[327720702,1716381037862,-500.0,0.00019311,2]
[327720704,1716381037871,-500.0,0.00019311,2]
[327720706,1716381037880,-500.0,0.00019311,2]
[327720708,1716381037889,-500.0,0.00019311,2]
[327720710,1716381037899,-500.0,0.00019311,2]
[327720712,1716381037908,-500.0,0.00019311,2]
[327720714,1716381037917,-500.0,0.00019311,2]
[327720716,1716381037927,-542.20615603,0.00019311,2]
[327720718,1716381037936,-500.0,0.00019311,2]
[327720720,1716381037945,-500.0,0.00019311,2]
[327720722,1716381037954,-13406.15427895,0.00019312,5]
[327720724,1716381037964,-3834.66552323,0.0001932,2]
[327720726,1716381037974,-3000.0,0.000215,2]
[327720728,1716381037983,-3000.0,0.0002151,2]
[327720729,1716381037992,-3000.0,0.0002152,2]
[327720746,1716381038135,-3000.0,0.0002153,2]
[327720748,1716381038147,-3000.0,0.0002154,2]
[327720750,1716381038156,-237.94088527,0.00021544,2]
[327720752,1716381038166,-4693.068713,0.0002155,2]
[327720754,1716381038175,-151.0,0.00021818,3]
[327720756,1716381038185,-166.666666,0.00021918,2]
[327720757,1716381038195,-5600.0,0.000223,6]
[327720759,1716381038206,-151.0,0.00022873,3]
[327720762,1716381038216,-237.94088527,0.00023872,2]
[327720763,1716381038227,-151.0,0.00023928,3]
[327720765,1716381038236,-201.84608,0.00024384,2]
[327720767,1716381038245,-202.574046,0.00024384,2]
[327720769,1716381038255,-165.53877212,0.000246,2]
[327720771,1716381038264,-151.0,0.00024983,5]
[327720773,1716381038274,-3950.6987584,0.00025,10]
[327720774,1716381038285,-6895.68318444,0.00026,2]
[327720775,1716381038294,-151.0,0.00026038,5]
[327720776,1716381038304,-237.94088527,0.00026201,2]
[327720777,1716381038313,-500.0,0.00027,120]
[327720778,1716381038322,-500.0,0.00027,120]
[327720779,1716381038332,-521.8,0.00027,120]
[327720780,1716381038342,-586.77,0.00027,120]
[327720781,1716381038351,-500.0,0.00027,120]
[327720782,1716381038361,-500.0,0.00027,120]
[327720783,1716381038371,-500.0,0.00027,120]
[327720784,1716381038381,-500.0,0.00027,120]
[327720786,1716381038390,-500.0,0.00027,120]
[327720788,1716381038399,-380.65,0.00027,120]
[327720789,1716381038408,-151.0,0.00027093,5]
[327720791,1716381038417,-151.0,0.00027397,2]
[327720793,1716381038427,-151.0,0.00027397,2]
[327720795,1716381038436,-5000.0,0.00027397,5]
[327720797,1716381038446,-5000.0,0.00027397,5]
[327720799,1716381038455,-5000.0,0.00027397,5]
[327720802,1716381038466,-5000.0,0.00027397,5]
[327720804,1716381038476,-5000.0,0.00027397,5]
[327720806,1716381038485,-5000.0,0.00027397,5]
[327720808,1716381038495,-5000.0,0.00027397,5]
[327720810,1716381038504,-3500.85329542,0.00027397,5]
[327720812,1716381038516,-1499.14670458,0.00027397,5]
[327720814,1716381038525,-5000.0,0.00027397,5]
[327720816,1716381038536,-5000.0,0.00027397,5]
[327720818,1716381038545,-5000.0,0.00027397,5]
[327720820,1716381038555,-5000.0,0.00027397,5]
[327720822,1716381038564,-5000.0,0.00027397,5]
[327720824,1716381038574,-5000.0,0.00027397,5]
[327720826,1716381038583,-5000.0,0.00027397,5]
[327720828,1716381038592,-286.47282166,0.00027397,5]
[327720830,1716381038601,-151.0,0.00027397,2]
[327720832,1716381038611,-261.30134306,0.00027621,3]
[327720834,1716381038620,-4224.86010977,0.00027637,2]
[327720836,1716381038629,-26880.96531568,0.00027999,2]
[327720838,1716381038638,-7428.52480682,0.00028,5]
[327720840,1716381038648,-64255.72889857,0.00028,4]
[327720863,1716381038853,-4433.416871,0.00028,4]
[327721479,1716381045829,-484.4848724,0.00019311,2]
[327721481,1716381045841,-190.90956017,0.00027397,2]
[327721483,1716381045851,-30444.92388759,0.00028,4]
[327721486,1716381045863,-649.13818402,0.00028,4]
[327721489,1716381045875,-38985.82220098,0.00028,4]
[327722349,1716381951134,-10054.61570921,0.00019304,5]
[327722350,1716381951155,-207.63637389,0.00019304,2]
[327722351,1716381951177,-2337.61895926,0.00019304,2]
[327722352,1716381951198,-2337.61895926,0.00019304,2]
[327722353,1716381951218,-2337.61895926,0.00019304,2]
[327722354,1716381951239,-2337.61895926,0.00019304,2]
[327722355,1716381951264,-2337.61895926,0.00019304,2]
[327722357,1716381951286,-2337.61895926,0.00019304,2]
[327722358,1716381951307,-2337.61895926,0.00019304,2]
[327722359,1716381951330,-2337.61895926,0.00019304,2]
[327722360,1716381951353,-2337.61895926,0.00019304,2]
[327722361,1716381951374,-2337.61895926,0.00019304,2]
[327722362,1716381951396,-2337.61895926,0.00019304,2]
[327722363,1716381951423,-2337.61895926,0.00019304,2]
[327722364,1716381951446,-2337.61895926,0.00019304,2]
[327722365,1716381951468,-2337.61895926,0.00019304,2]
[327722366,1716381951491,-2337.61895926,0.00019304,2]
[327722367,1716381951514,-2337.61895926,0.00019304,2]
[327722368,1716381951535,-2337.61895926,0.00019304,2]
[327722369,1716381951556,-2337.61895926,0.00019304,2]
[327722370,1716381951580,-2337.61895926,0.00019304,2]
[327722371,1716381951602,-2337.61895926,0.00019304,2]
[327722372,1716381951623,-2337.61895926,0.00019304,2]
[327722373,1716381951645,-2337.61895926,0.00019304,2]
[327722374,1716381951668,-2337.61895926,0.00019304,2]
[327722375,1716381951690,-2337.61895926,0.00019304,2]
[327722376,1716381951711,-2337.61895926,0.00019304,2]
[327722377,1716381951733,-2337.61895926,0.00019304,2]
[327722378,1716381951754,-2337.61895926,0.00019304,2]
[327722379,1716381951778,-2337.61895926,0.00019304,2]
[327722380,1716381951801,-2337.61895926,0.00019304,2]
[327722381,1716381951823,-2337.61895926,0.00019304,2]
[327722382,1716381951844,-2337.61895926,0.00019304,2]
[327722383,1716381951966,-2337.61895926,0.00019304,2]
[327722384,1716381951992,-2337.61895926,0.00019304,2]
[327722385,1716381952017,-2337.61895926,0.00019304,2]
[327722386,1716381952038,-2337.61895926,0.00019304,2]
[327722387,1716381952060,-2337.61895926,0.00019304,2]
[327722388,1716381952081,-2337.61895926,0.00019304,2]
[327722390,1716381952102,-2337.61895926,0.00019304,2]
[327722391,1716381952123,-2337.61895926,0.00019304,2]
[327722393,1716381952144,-2951.07103524,0.00019304,2]
[327722394,1716381952164,-2951.07103524,0.00019304,2]
[327722395,1716381952185,-2951.07103524,0.00019304,2]
[327722396,1716381952205,-2951.07103524,0.00019304,2]
[327722397,1716381952226,-2951.07103524,0.00019304,2]
[327722398,1716381952246,-2951.07103524,0.00019304,2]
[327722399,1716381952270,-2951.07103524,0.00019304,2]
[327722400,1716381952289,-2951.07103524,0.00019304,2]
[327722401,1716381952308,-493.64755092,0.00019304,2]
[327722407,1716382031311,-150.0,0.000189,2]
[327722408,1716382031333,-158.62725688,0.00019204,2]
[327722409,1716382031353,-338.688,0.00019308,2]
[327722410,1716382031374,-17440.5223674,0.0001931,2]
[327722411,1716382031396,-150.0,0.000215,2]
[327722412,1716382031417,-151.0,0.00021748,3]
[327722413,1716382031440,-5600.0,0.000223,6]
[327722414,1716382031464,-158.62725684,0.00022521,2]
[327722415,1716382031486,-151.0,0.00022753,3]
[327722416,1716382031507,-151.0,0.00023757,3]
[327722417,1716382031530,-150.0,0.000239,2]
[327722418,1716382031551,-191.753776,0.00024384,2]
[327722419,1716382031575,-1090.29384871,0.00025,2]
[327722420,1716382031598,-158.62725684,0.00025838,2]
[327722421,1716382031619,-6895.68318444,0.00026574,2]
[327722422,1716382031639,-7900.6,0.00026838,3]
[327722423,1716382031660,-6583.84,0.00026838,3]
[327722424,1716382031683,-1416.1184907,0.00026848,2]
[327722425,1716382031707,-1416.1184907,0.00026848,2]
[327722426,1716382031730,-1416.1184907,0.00026848,2]
[327722427,1716382031753,-1416.1184907,0.00026848,2]
[327722428,1716382031776,-1416.1184907,0.00026848,2]
[327722429,1716382031798,-1416.1184907,0.00026848,2]
[327722430,1716382031828,-1416.1184907,0.00026848,2]
[327722431,1716382031852,-1416.1184907,0.00026848,2]
[327722432,1716382031875,-1416.1184907,0.00026848,2]
[327722433,1716382031898,-1416.1184907,0.00026848,2]
[327722434,1716382031920,-1416.1184907,0.00026848,2]
[327722435,1716382031943,-1416.1184907,0.00026848,2]
[327722436,1716382031965,-1416.1184907,0.00026848,2]
[327722437,1716382031988,-1416.1184907,0.00026848,2]
[327722438,1716382032010,-1416.1184907,0.00026848,2]
[327722439,1716382032033,-1416.1184907,0.00026848,2]
[327722440,1716382032057,-1416.1184907,0.00026848,2]
[327722441,1716382032082,-1416.1184907,0.00026848,2]
[327722442,1716382032104,-1416.1184907,0.00026848,2]
[327722443,1716382032126,-1416.1184907,0.00026848,2]
[327722444,1716382032148,-1416.1184907,0.00026848,2]
[327722445,1716382032171,-1416.1184907,0.00026848,2]
[327722446,1716382032194,-1416.1184907,0.00026848,2]
[327722447,1716382032217,-1416.1184907,0.00026848,2]
[327722448,1716382032238,-1416.1184907,0.00026848,2]
[327722449,1716382032259,-1416.1184907,0.00026848,2]
[327722450,1716382032283,-1416.1184907,0.00026848,2]